[Event "Moscow Open RSSU Cup 2019"]
[Site "Moscow"]
[Date "2019.01.27"]
[Round "2"]
[White "Afanasiev, Nikita"]
[Black "Salemgareev, Tagir"]
[Result "1/2-1/2"]
[ECO "E11"]
[WhiteElo "2508"]
[BlackElo "2342"]
[Annotator "ChessBase"]
[PlyCount "102"]
[EventDate "2019.01.26"]
[EventType "swiss"]
[EventCountry "RUS"]
[SourceTitle "playchess.com"]
[Source "ChessBase"]
[SourceQuality "1"]
[TimeControl "40/5400+30:1800+30"]

1. d4 {[%emt 0:02:07]} Nf6 {[%emt 0:00:00]} 2. c4 {[%emt 0:00:13]} e6 {[%emt 0:00:00]} 3. Nf3 {[%emt 0:00:07]} Bb4+ {[%emt 0:00:20]} 4. Nbd2 {[%emt 0:00:12]} O-O {[%emt 0:00:14]} 5. a3 {[%emt 0:00:16]} Be7 {[%emt 0:00:05]} 6. e4 {[%emt 0:04:54]} d6 {[%emt 0:00:51]} 7. b4 {[%emt 0:01:27]} c5 8. Bb2 {[%emt 0:22:19]} cxd4 {[%emt 0:16:08]} 9. Nxd4 {[%emt 0:00:37]} b6 {[%emt 0:05:34]} 10. Bd3 {[%emt 0:04:21]} Bb7 {[%emt 0:00:42]} 11. O-O {[%emt 0:00:43]} Nc6 {[%emt 0:00:39]} 12. Nxc6 {[%emt 0:04:27]} Bxc6 {[%emt 0:00:39]} 13. Qe2 {[%emt 0:00:13]} Nd7 {[%emt 0:07:54]} 14. Nf3 {[%emt 0:12:40]} Bf6 {[%emt 0:03:53]} 15. Nd4 {[%emt 0:01:59]} Ba4 {[%emt 0:02:29]} 16. Rac1 a6 {[%emt 0:04:36]} 17. Bc2 {[%emt 0:10:54]} Bxc2 {[%emt 0:00:17]} 18. Rxc2 {[%emt 0:00:15]} Qc7 {[%emt 0:01:41]} 19. Nf3 {[%emt 0:05:22]} Bxb2 {[%emt 0:06:09]} 20. Rxb2 {[%emt 0:00:02]} Rfc8 {[%emt 0:00:09]} 21. Rc1 {[%emt 0:05:51]} a5 {[%emt 0:05:55]} 22. b5 {[%emt 0:06:55]} Qc5 {[%emt 0:03:30]} 23. Qd3 {[%emt 0:01:16]} Ne5 {[%emt 0:11:42]} 24. Nxe5 {[%emt 0:00:14]} dxe5 {[%emt 0:02:36]} 25. Rd2 {[%emt 0:00:24]} Rab8 {[%emt 0:01:16]} 26. Qd6 {[%emt 0:02:56]} Qxd6 {[%emt 0:05:41]} 27. Rxd6 {[%emt 0:00:03]} Rc5 {[%emt 0:00:08]} 28. Kf1 {[%emt 0:09:25]} Kf8 {[%emt 0:01:34]} 29. Ke2 {[%emt 0:00:40]} Ke7 {[%emt 0:00:17]} 30. Rdd1 {[%emt 0:01:32]} Rbc8 {[%emt 0:00:43]} 31. Kd3 {[%emt 0:00:02]} R8c7 {[%emt 0:02:38]} 32. f3 {[%emt 0:01:26]} Rc8 {[%emt 0:02:04]} 33. a4 {[%emt 0:00:55]} h5 {[%emt 0:00:54]} 34. h4 {[%emt 0:00:37]} f5 {[%emt 0:01:05]} 35. Rd2 {[%emt 0:00:31]} Kf6 {[%emt 0:01:05]} 36. Rc3 {[%emt 0:01:10]} f4 {[%emt 0:05:41]} 37. Rc1 {[%emt 0:00:42]} g5 {[%emt 0:00:58]} 38. hxg5+ {[%emt 0:00:26]} Kxg5 {[%emt 0:00:06]} 39. Rdd1 {[%emt 0:00:14]} R8c7 {[%emt 0:01:34]} 40. Rd2 {[%emt 0:00:00]} Rc8 41. Rdd1 {[%emt 0:08:27]} Kf6 {[%emt 0:12:13]} 42. Rc2 {[%emt 0:03:28]} Kg6 {[%emt 0:00:27]} 43. Ke2 {[%emt 0:06:04]} Rxc4 {[%emt 0:00:07]} 44. Rxc4 {[%emt 0:00:05]} Rxc4 {[%emt 0:00:03]} 45. Rd6 Kf6 {[%emt 0:02:39]} 46. Rxb6 {[%emt 0:00:19]} Rxa4 {[%emt 0:00:04]} 47. Ra6 {[%emt 0:00:09]} Ra3 {[%emt 0:02:33]} 48. Kf2 {[%emt 0:00:31]} a4 {[%emt 0:00:34]} 49. b6 {[%emt 0:02:45]} Rb3 {[%emt 0:01:11]} 50. Kg1 {[%emt 0:00:27]} a3 {[%emt 0:00:24]} 51. b7 {[%emt 0:00:09]} Rxb7 {[%emt 0:00:41]} 1/2-1/2

[Event "Moscow Open RSSU Cup 2019"]
[Site "Moscow"]
[Date "2019.01.29"]
[Round "4"]
[White "Drygalov, Andrey"]
[Black "Nikitenko, Mihail"]
[Result "1/2-1/2"]
[ECO "C50"]
[WhiteElo "2485"]
[BlackElo "2402"]
[Annotator "ChessBase"]
[PlyCount "140"]
[EventDate "2019.01.26"]
[EventType "swiss"]
[EventCountry "RUS"]
[SourceTitle "playchess.com"]
[Source "ChessBase"]
[SourceQuality "1"]
[TimeControl "40/5400+30:1800+30"]

1. e4 {[%emt 0:00:00]} e5 {[%emt 0:00:00]} 2. Nf3 {[%emt 0:00:19]} Nc6 3. Bc4 {[%emt 0:00:02]} Bc5 {[%emt 0:00:03]} 4. O-O {[%emt 0:00:07]} Nf6 {[%emt 0:00:07]} 5. d3 {[%emt 0:00:01]} d6 {[%emt 0:00:15]} 6. c3 {[%emt 0:00:04]} a6 {[%emt 0:00:07]} 7. a4 {[%emt 0:00:15]} h6 {[%emt 0:00:11]} 8. Re1 {[%emt 0:00:11]} O-O {[%emt 0:00:23]} 9. h3 {[%emt 0:00:04]} Be6 {[%emt 0:01:56]} 10. Bxe6 {[%emt 0:00:35]} fxe6 {[%emt 0:00:07]} 11. b4 {[%emt 0:00:01]} Ba7 {[%emt 0:00:13]} 12. Nbd2 {[%emt 0:00:04]} Qe8 {[%emt 0:01:47]} 13. Nf1 {[%emt 0:00:25]} Nh5 {[%emt 0:00:42]} 14. Be3 {[%emt 0:00:07]} Bxe3 {[%emt 0:00:54]} 15. Rxe3 {[%emt 0:00:04]} Nf4 {[%emt 0:06:45]} 16. Kh2 {[%emt 0:04:17]} Qh5 {[%emt 0:06:25]} 17. Ng3 {[%emt 0:04:17]} Qf7 {[%emt 0:00:09]} 18. Rb1 {[%emt 0:10:36]} a5 {[%emt 0:00:53]} 19. b5 {[%emt 0:02:39]} Nb8 {[%emt 0:00:11]} 20. d4 {[%emt 0:04:09]} Nd7 {[%emt 0:01:01]} 21. Nf1 {[%emt 0:02:20]} g5 {[%emt 0:06:06]} 22. dxe5 {[%emt 0:15:20]} dxe5 {[%emt 0:00:39]} 23. g3 {[%emt 0:05:16]} Ng6 {[%emt 0:00:17]} 24. Rb2 {[%emt 0:03:47]} Qe7 {[%emt 0:15:35]} 25. Kg2 {[%emt 0:04:42]} Rf7 {[%emt 0:02:49]} 26. Ne1 {[%emt 0:03:52]} Raf8 {[%emt 0:00:48]} 27. Nd3 {[%emt 0:04:44]} Kh7 {[%emt 0:05:00]} 28. Nd2 {[%emt 0:05:06]} b6 {[%emt 0:11:31]} 29. Nc4 {[%emt 0:03:50]} Qf6 {[%emt 0:05:35]} 30. Rd2 {[%emt 0:03:39]} Rg7 {[%emt 0:02:52]} 31. Kh2 {[%emt 0:01:46]} Rfg8 {[%emt 0:00:41]} 32. Re1 {[%emt 0:02:28]} Kh8 {[%emt 0:03:43]} 33. Ne3 {[%emt 0:00:33]} h5 {[%emt 0:03:38]} 34. Qxh5+ {[%emt 0:04:32]} Rh7 {[%emt 0:00:04]} 35. Qd1 {[%emt 0:01:52]} Nf4 {[%emt 0:05:28]} 36. Nxf4 {[%emt 0:00:15]} gxf4 {[%emt 0:13:10]} 37. Ng4 {[%emt 0:00:48]} Qg7 {[%emt 0:00:03]} 38. Kg2 {[%emt 0:01:34]} Rf8 {[%emt 0:00:49]} 39. f3 fxg3 {[%emt 0:01:06]} 40. Re3 {[%emt 0:00:00]} Nf6 {[%emt 0:00:00]} 41. Red3 {[%emt 0:16:44]} Nh5 {[%emt 0:17:32]} 42. Rd8 Nf4+ 43. Kxg3 {[%emt 0:01:41]} Rxh3+ {[%emt 0:00:34]} 44. Kf2 {[%emt 0:00:04]} Rh2+ 45. Nxh2 {[%emt 0:07:54]} Nh3+ {[%emt 0:00:09]} 46. Ke2 {[%emt 0:01:12]} Qg2+ {[%emt 0:02:03]} 47. Kd3 {[%emt 0:02:10]} Rxd8+ {[%emt 0:00:05]} 48. Kc2 {[%emt 0:00:08]} Rxd2+ {[%emt 0:06:02]} 49. Qxd2 {[%emt 0:00:13]} Nf2 {[%emt 0:03:28]} 50. Qh6+ {[%emt 0:01:41]} Kg8 {[%emt 0:00:04]} 51. Qxe6+ {[%emt 0:00:05]} Kh7 {[%emt 0:00:19]} 52. Qf7+ {[%emt 0:02:51]} Kh6 {[%emt 0:00:16]} 53. Qf6+ {[%emt 0:00:12]} Kh7 {[%emt 0:00:12]} 54. Qf7+ {[%emt 0:00:04]} Kh6 {[%emt 0:00:04]} 55. Qf6+ {[%emt 0:00:04]} Kh7 {[%emt 0:00:03]} 56. Qh4+ {[%emt 0:02:14]} Kg6 {[%emt 0:00:18]} 57. Kb3 {[%emt 0:00:29]} Nd3 {[%emt 0:04:15]} 58. Qg4+ {[%emt 0:06:53]} Qxg4 {[%emt 0:00:04]} 59. Nxg4 {[%emt 0:00:05]} Kg5 {[%emt 0:00:17]} 60. Kc4 {[%emt 0:00:09]} Nb2+ {[%emt 0:00:04]} 61. Kb3 {[%emt 0:00:03]} Nd3 {[%emt 0:00:04]} 62. Kc4 {[%emt 0:00:32]} Nb2+ {[%emt 0:00:04]} 63. Kd5 {[%emt 0:01:36]} Nxa4 {[%emt 0:00:04]} 64. Nxe5 {[%emt 0:00:27]} Nxc3+ {[%emt 0:01:58]} 65. Kc6 {[%emt 0:00:12]} Kf6 {[%emt 0:03:42]} 66. Nc4 {[%emt 0:00:35]} Ke7 {[%emt 0:00:10]} 67. Kxc7 {[%emt 0:01:07]} Nxb5+ {[%emt 0:00:04]} 68. Kxb6 {[%emt 0:00:06]} Nd4 {[%emt 0:00:02]} 69. f4 {[%emt 0:00:51]} Ne2 {[%emt 0:00:12]} 70. Kxa5 {[%emt 0:00:19]} Nxf4 {[%emt 0:00:05]} 1/2-1/2

[Event "Moscow Open RSSU Cup 2019"]
[Site "Moscow"]
[Date "2019.01.29"]
[Round "4"]
[White "Avalyan, Artur"]
[Black "Fakhrutdinov, Timur"]
[Result "1/2-1/2"]
[ECO "E46"]
[WhiteElo "2347"]
[BlackElo "2481"]
[Annotator "RC"]
[PlyCount "130"]
[EventDate "2019.01.26"]
[EventType "swiss"]
[EventCountry "RUS"]
[SourceTitle "playchess.com"]
[Source "ChessBase"]
[SourceQuality "1"]
[TimeControl "40/5400+30:1800+30"]

1. d4 {[%emt 0:00:00]} Nf6 {[%emt 0:00:00]} 2. c4 {[%emt 0:00:00]} e6 {[%emt 0:00:00]} 3. Nc3 {[%emt 0:00:00]} Bb4 {[%emt 0:00:00]} 4. e3 {[%emt 0:00:00]} O-O {[%emt 0:00:00]} 5. Nge2 d5 {[%emt 0:00:18]} 6. a3 {[%emt 0:00:07]} Bd6 {[%emt 0:00:13]} 7. c5 {[%emt 0:00:26]} Be7 {[%emt 0:00:12]} 8. Nf4 {[%emt 0:00:32]} c6 {[%emt 0:00:57]} 9. Be2 {[%emt 0:00:48]} Nbd7 {[%emt 0:05:59]} 10. b4 {[%emt 0:02:20]} Qc7 {[%emt 0:13:43]} 11. O-O {[%emt 0:01:22]} e5 {[%emt 0:15:47]} 12. dxe5 {[%emt 0:02:11]} Nxe5 {[%emt 0:02:13]} 13. Qc2 {[%emt 0:04:58]} Ng6 {[%emt 0:08:23]} 14. Nxg6 {[%emt 0:07:24]} hxg6 {[%emt 0:00:32]} 15. h3 {[%emt 0:01:01]} Bf5 {[%emt 0:07:13]} 16. Bd3 {[%emt 0:00:09]} Bxd3 {[%emt 0:03:59]} 17. Qxd3 {[%emt 0:00:07]} Nd7 {[%emt 0:00:33]} 18. e4 {[%emt 0:06:26]} dxe4 {[%emt 0:09:49]} 19. Nxe4 {[%emt 0:01:08]} Rad8 {[%emt 0:03:19]} 20. Qc2 {[%emt 0:00:56]} Nf6 {[%emt 0:03:23]} 21. Bb2 {[%emt 0:06:55]} Nxe4 {[%emt 0:01:24]} 22. Qxe4 {[%emt 0:00:07]} Bf6 {[%emt 0:00:31]} 23. Bxf6 {[%emt 0:00:21]} gxf6 {[%emt 0:00:07]} 24. Rfe1 {[%emt 0:01:39]} Kg7 {[%emt 0:09:13]} 25. Re2 {[%emt 0:02:26]} Rd5 {[%emt 0:00:57]} 26. Rae1 {[%emt 0:00:59]} Rfd8 {[%emt 0:00:37]} 27. g3 {[%emt 0:00:57]} a5 {[%emt 0:01:43]} 28. Qf3 {[%emt 0:02:36]} Rd3 {[%emt 0:03:15]} 29. Re3 {[%emt 0:00:08]} Rxe3 {[%emt 0:00:32]} 30. Rxe3 {[%emt 0:00:32]} axb4 {[%emt 0:01:33]} 31. axb4 {[%emt 0:00:05]} Qd7 {[%emt 0:02:39]} 32. Kg2 {[%emt 0:00:27]} Qd2 {[%emt 0:00:53]} 33. Rb3 {[%emt 0:03:55]} Rd5 {[%emt 0:00:21]} 34. Qe3 {[%emt 0:02:22]} Qxe3 {[%emt 0:02:24]} 35. Rxe3 {[%emt 0:10:56]} Rd4 {[%emt 0:00:11]} 36. Rb3 {[%emt 0:00:41]} f5 {[%emt 0:01:25]} 37. Kf3 {[%emt 0:00:02]} Re4 {[%emt 0:00:41]} 38. Rb2 {[%emt 0:11:18]} Kf6 {[%emt 0:00:29]} 39. h4 {[%emt 0:01:26]} Rd4 {[%emt 0:01:21]} 40. Ke3 {[%emt 0:00:00]} Ke5 {[%emt 0:00:00]} 41. Rb3 {[%emt 0:18:02]} Re4+ {[%emt 0:13:57]} 42. Kd3 {[%emt 0:00:32]} Kd5 43. Rb1 {[%emt 0:17:44]} f4 {[%emt 0:03:58]} 44. g4 {[%emt 0:13:57]} f3 {[%emt 0:00:28]} 45. h5 {[%emt 0:00:34]} Rxg4 {[%emt 0:00:56]} 46. hxg6 {[%emt 0:01:16]} fxg6 {[%emt 0:12:08]} 47. Ke3 {[%emt 0:00:24]} Kc4 {[%emt 0:00:34]} 48. Kxf3 {[%emt 0:00:08]} Rd4 {[%emt 0:00:33]} 49. Ke3 {[%emt 0:05:02]} Rd3+ {[%emt 0:01:00]} 50. Ke4 {[%emt 0:00:09]} Rb3 {[%emt 0:00:57]} 51. Rc1+ {[%emt 0:00:10]} Kxb4 {[%emt 0:01:51]} 52. f4 {[%emt 0:00:05]} Kb5 {[%emt 0:01:38]} 53. Ke5 {[%emt 0:00:19]} Re3+ {[%emt 0:00:39]} 54. Kf6 {[%emt 0:00:01]} Re4 {[%emt 0:00:23]} 55. Kg5 {[%emt 0:00:23]} Re6 {[%emt 0:00:25]} 56. Rc2 {[%emt 0:02:46]} b6 {[%emt 0:00:39]} 57. cxb6 {[%emt 0:00:33]} Kxb6 {[%emt 0:00:07]} 58. Rh2 {[%emt 0:01:32]} c5 {[%emt 0:00:54]} 59. Rh6 {[%emt 0:00:02]} Rc6 {[%emt 0:00:49]} 60. Rxg6 {[%emt 0:00:23]} c4 {[%emt 0:00:15]} 61. Rg8 {[%emt 0:00:05]} c3 {[%emt 0:00:54]} 62. Rb8+ {[%emt 0:00:02]} Kc5 {[%emt 0:00:19]} 63. Rb1 {[%emt 0:00:02]} c2 {[%emt 0:00:37]} 64. Rc1 {[%emt 0:00:04]} Kd4 {[%emt 0:00:24]} 65. f5 {[%emt 0:00:03]} Kc3 {[%emt 0:00:21]} 1/2-1/2

[Event "Moscow Open RSSU Cup 2019"]
[Site "Moscow"]
[Date "2019.01.29"]
[Round "4"]
[White "Nazaretyan, Tigran"]
[Black "Kezin, Roman"]
[Result "1-0"]
[ECO "D45"]
[WhiteElo "2250"]
[BlackElo "2471"]
[Annotator "RC"]
[PlyCount "63"]
[EventDate "2019.01.26"]
[EventType "swiss"]
[EventCountry "RUS"]
[SourceTitle "playchess.com"]
[Source "ChessBase"]
[SourceQuality "1"]
[TimeControl "40/5400+30:1800+30"]

1. d4 d5 {[%emt 0:05:01]} 2. c4 {[%emt 0:00:00]} e6 {[%emt 0:00:06]} 3. Nf3 {[%emt 0:00:43]} Nf6 {[%emt 0:00:15]} 4. Nc3 {[%emt 0:00:18]} c6 {[%emt 0:00:24]} 5. e3 {[%emt 0:00:30]} Nbd7 {[%emt 0:00:07]} 6. Qc2 {[%emt 0:00:26]} Bd6 {[%emt 0:05:29]} 7. b3 {[%emt 0:03:27]} O-O {[%emt 0:00:24]} 8. Be2 {[%emt 0:00:24]} a6 {[%emt 0:07:09]} 9. Bb2 {[%emt 0:04:20]} Qe7 {[%emt 0:01:29]} 10. Rd1 {[%emt 0:06:32]} b6 {[%emt 0:34:34]} 11. O-O {[%emt 0:03:02]} Bb7 {[%emt 0:18:09]} 12. e4 {[%emt 0:03:26]} dxe4 {[%emt 0:01:04]} 13. Nxe4 {[%emt 0:01:04]} Nxe4 {[%emt 0:00:07]} 14. Qxe4 {[%emt 0:00:19]} Rad8 {[%emt 0:02:12]} 15. Rfe1 {[%emt 0:15:08]} Bb4 {[%emt 0:00:58]} 16. Bd3 {[%emt 0:01:35]} Nf6 {[%emt 0:00:34]} 17. Qh4 {[%emt 0:00:36]} h6 {[%emt 0:02:31]} 18. Re3 {[%emt 0:04:20]} Rfe8 {[%emt 0:03:58]} 19. Qh3 {[%emt 0:14:37]} Nd7 {[%emt 0:12:20]} 20. Bc2 {[%emt 0:07:31]} Qf8 {[%emt 0:01:36]} 21. Ng5 {[%emt 0:04:58]} Nf6 {[%emt 0:01:08]} 22. d5 {[%emt 0:01:48]} e5 {[%emt 0:00:01]} 23. Rxe5 {[%emt 0:08:50]} Bc8 {[%emt 0:01:13]} 24. Qd3 {[%emt 0:02:25]} hxg5 {[%emt 0:00:11]} 25. Rxg5 {[%emt 0:03:06]} Qd6 {[%emt 0:00:17]} 26. Qd4 {[%emt 0:06:55]} Kf8 {[%emt 0:01:06]} 27. Qh4 {[%emt 0:00:59]} Re2 {[%emt 0:00:33]} 28. Qh8+ {[%emt 0:01:14]} Ke7 {[%emt 0:00:08]} 29. Qxg7 {[%emt 0:00:15]} Rxc2 {[%emt 0:00:52]} 30. Be5 {[%emt 0:02:12]} Rg8 {[%emt 0:00:32]} 31. Bxd6+ {[%emt 0:00:34]} Bxd6 {[%emt 0:00:23]} 32. Re1+ 1-0

[Event "Moscow Open RSSU Cup 2019"]
[Site "Moscow"]
[Date "2019.01.30"]
[Round "5"]
[White "Sjugirov, Sanan"]
[Black "Zakhartsov, Vladimir"]
[Result "1/2-1/2"]
[ECO "E15"]
[WhiteElo "2663"]
[BlackElo "2483"]
[Annotator "RC"]
[PlyCount "143"]
[EventDate "2019.01.26"]
[EventType "swiss"]
[EventCountry "RUS"]
[SourceTitle "playchess.com"]
[Source "ChessBase"]
[SourceQuality "1"]
[TimeControl "40/5400+30:1800+30"]

1. d4 {[%emt 0:00:00]} Nf6 {[%emt 0:07:28]} 2. c4 {[%emt 0:00:00]} e6 {[%emt 0:00:04]} 3. Nf3 {[%emt 0:00:00]} b6 {[%emt 0:00:44]} 4. g3 {[%emt 0:00:00]} Ba6 {[%emt 0:00:30]} 5. b3 {[%emt 0:00:10]} Bb4+ {[%emt 0:01:41]} 6. Bd2 {[%emt 0:00:09]} Be7 {[%emt 0:00:09]} 7. Bg2 {[%emt 0:00:52]} c6 {[%emt 0:00:25]} 8. Nc3 {[%emt 0:00:23]} d5 {[%emt 0:02:05]} 9. O-O {[%emt 0:05:02]} O-O {[%emt 0:01:17]} 10. Qc2 {[%emt 0:01:13]} b5 {[%emt 0:05:47]} 11. cxb5 {[%emt 0:27:47]} cxb5 {[%emt 0:01:26]} 12. a3 {[%emt 0:00:36]} Nbd7 {[%emt 0:10:44]} 13. Qd3 {[%emt 0:01:57]} Qb6 {[%emt 0:01:11]} 14. b4 {[%emt 0:05:43]} Rac8 {[%emt 0:00:26]} 15. Be3 {[%emt 0:07:16]} Bb7 {[%emt 0:17:29]} 16. Nxb5 {[%emt 0:06:53]} Ba6 {[%emt 0:03:13]} 17. a4 {[%emt 0:01:10]} Rc4 {[%emt 0:04:22]} 18. Ne5 {[%emt 0:20:10]} Rxb4 {[%emt 0:00:41]} 19. Qa3 {[%emt 0:01:15]} Re8 {[%emt 0:02:32]} 20. Qa2 {[%emt 0:00:46]} Bxb5 {[%emt 0:01:11]} 21. axb5 {[%emt 0:00:08]} Qxb5 {[%emt 0:00:07]} 22. Nd3 {[%emt 0:00:57]} Rb3 {[%emt 0:03:20]} 23. Qxa7 {[%emt 0:00:10]} Rc8 {[%emt 0:05:09]} 24. Bf3 {[%emt 0:08:00]} h6 {[%emt 0:02:52]} 25. Kg2 {[%emt 0:00:07]} Qb7 {[%emt 0:01:19]} 26. h4 {[%emt 0:02:37]} Bd6 {[%emt 0:04:21]} 27. Ra6 {[%emt 0:01:33]} Qxa7 {[%emt 0:00:51]} 28. Rxa7 {[%emt 0:00:02]} Bb8 {[%emt 0:00:20]} 29. Ra6 Rb6 {[%emt 0:01:39]} 30. Ra8 {[%emt 0:02:05]} Rb7 {[%emt 0:00:28]} 31. Rfa1 {[%emt 0:02:27]} Nb6 {[%emt 0:01:34]} 32. Rb1 {[%emt 0:00:18]} Ra7 {[%emt 0:00:30]} 33. Rxa7 {[%emt 0:02:01]} Bxa7 {[%emt 0:00:01]} 34. Bf4 {[%emt 0:01:23]} Nfd7 {[%emt 0:01:07]} 35. g4 {[%emt 0:02:19]} Bb8 {[%emt 0:00:19]} 36. Bc1 {[%emt 0:01:01]} Bd6 {[%emt 0:00:19]} 37. g5 {[%emt 0:00:19]} hxg5 {[%emt 0:00:25]} 38. Bxg5 {[%emt 0:00:10]} f6 {[%emt 0:01:43]} 39. Bc1 {[%emt 0:00:58]} Kf7 {[%emt 0:00:35]} 40. h5 {[%emt 0:00:00]} Rb8 {[%emt 0:00:00]} 41. Bg4 {[%emt 0:03:17]} Nc8 {[%emt 0:05:49]} 42. Ra1 {[%emt 0:00:25]} Rb7 {[%emt 0:00:23]} 43. Be3 {[%emt 0:02:21]} Ra7 {[%emt 0:00:34]} 44. Rc1 {[%emt 0:01:29]} Rc7 {[%emt 0:01:48]} 45. Rb1 {[%emt 0:00:21]} Ne7 {[%emt 0:00:35]} 46. Ra1 {[%emt 0:00:38]} Nf8 {[%emt 0:01:59]} 47. Ra6 {[%emt 0:02:50]} Rc6 {[%emt 0:00:14]} 48. Ra5 {[%emt 0:00:15]} Rc7 {[%emt 0:00:56]} 49. h6 {[%emt 0:03:09]} gxh6 {[%emt 0:02:52]} 50. Bxh6 {[%emt 0:02:17]} Nfg6 {[%emt 0:00:26]} 51. Bh5 {[%emt 0:00:47]} Kg8 {[%emt 0:05:12]} 52. Kh3 {[%emt 0:05:00]} Kh7 {[%emt 0:00:22]} 53. Bd2 {[%emt 0:00:28]} Kg7 {[%emt 0:02:13]} 54. Rb5 {[%emt 0:08:08]} Rc8 {[%emt 0:01:31]} 55. Kg2 {[%emt 0:00:55]} Rb8 {[%emt 0:03:12]} 56. Ra5 {[%emt 0:03:30]} Nh4+ {[%emt 0:01:52]} 57. Kh3 {[%emt 0:00:19]} Nhf5 {[%emt 0:00:52]} 58. Ra6 {[%emt 0:00:18]} Rh8 {[%emt 0:01:37]} 59. Kg4 {[%emt 0:00:04]} Nc8 {[%emt 0:00:20]} 60. e3 {[%emt 0:01:59]} Kf8 {[%emt 0:05:15]} 61. Nb4 {[%emt 0:00:55]} Ke7 {[%emt 0:02:23]} 62. Ra8 {[%emt 0:00:17]} Kd7 {[%emt 0:00:55]} 63. Nd3 {[%emt 0:00:54]} Ng7 {[%emt 0:04:03]} 64. Bg6 {[%emt 0:00:06]} Rh1 {[%emt 0:03:42]} 65. Kf3 {[%emt 0:00:33]} Rg1 {[%emt 0:01:03]} 66. Bf7 {[%emt 0:00:29]} Ke7 {[%emt 0:02:21]} 67. Rxc8 {[%emt 0:02:51]} Kxf7 {[%emt 0:00:05]} 68. Bb4 {[%emt 0:00:22]} Rd1 {[%emt 0:03:32]} 69. Bxd6 {[%emt 0:00:58]} Rxd3 {[%emt 0:00:02]} 70. Rf8+ {[%emt 0:00:25]} Kg6 {[%emt 0:00:02]} 71. Be7 {[%emt 0:00:16]} Nh5 {[%emt 0:00:08]} 72. Bc5 {[%emt 0:00:40]} 1/2-1/2

[Event "Moscow Open RSSU Cup 2019"]
[Site "Moscow"]
[Date "2019.01.30"]
[Round "5"]
[White "Fakhrutdinov, Timur"]
[Black "Radzhabov, Rodion"]
[Result "1/2-1/2"]
[ECO "B42"]
[WhiteElo "2481"]
[BlackElo "2329"]
[Annotator "RC"]
[PlyCount "139"]
[EventDate "2019.01.26"]
[EventType "swiss"]
[EventCountry "RUS"]
[SourceTitle "playchess.com"]
[Source "ChessBase"]
[SourceQuality "1"]
[TimeControl "40/5400+30:1800+30"]

1. e4 {[%emt 0:00:00]} c5 {[%emt 0:00:00]} 2. Nf3 {[%emt 0:00:00]} e6 {[%emt 0:00:00]} 3. d4 {[%emt 0:00:00]} cxd4 {[%emt 0:00:00]} 4. Nxd4 {[%emt 0:00:00]} a6 {[%emt 0:00:17]} 5. Bd3 {[%emt 0:00:00]} Qc7 {[%emt 0:00:19]} 6. O-O {[%emt 0:00:34]} Nf6 {[%emt 0:00:19]} 7. Qe2 {[%emt 0:00:26]} d6 {[%emt 0:01:16]} 8. c4 {[%emt 0:00:39]} Be7 {[%emt 0:01:44]} 9. Nc3 {[%emt 0:02:50]} Nbd7 {[%emt 0:01:54]} 10. f4 {[%emt 0:03:59]} b6 {[%emt 0:12:22]} 11. Bd2 {[%emt 0:04:06]} Bb7 {[%emt 0:00:26]} 12. b4 {[%emt 0:03:07]} g6 {[%emt 0:14:28]} 13. Rac1 {[%emt 0:12:04]} O-O {[%emt 0:08:37]} 14. f5 {[%emt 0:06:46]} exf5 {[%emt 0:12:20]} 15. exf5 {[%emt 0:14:34]} Qd8 {[%emt 0:03:29]} 16. fxg6 {[%emt 0:19:47]} hxg6 {[%emt 0:00:30]} 17. Nd5 {[%emt 0:08:01]} Nxd5 {[%emt 0:02:08]} 18. cxd5 {[%emt 0:00:06]} Bxd5 {[%emt 0:05:31]} 19. Be4 {[%emt 0:06:02]} Bxe4 {[%emt 0:02:17]} 20. Qxe4 {[%emt 0:00:08]} Ne5 {[%emt 0:01:29]} 21. Qd5 {[%emt 0:08:04]} Qd7 {[%emt 0:02:25]} 22. Rce1 {[%emt 0:00:54]} Rfd8 23. Nf3 {[%emt 0:08:14]} Qe6 {[%emt 0:14:04]} 24. Qxe6 {[%emt 0:00:54]} fxe6 {[%emt 0:00:02]} 25. Nd4 {[%emt 0:00:32]} Rf8 {[%emt 0:05:39]} 26. Nxe6 {[%emt 0:00:17]} Rxf1+ {[%emt 0:00:02]} 27. Rxf1 {[%emt 0:00:07]} Rc8 {[%emt 0:00:06]} 28. Rc1 {[%emt 0:00:42]} Nc4 {[%emt 0:00:17]} 29. Bc3 {[%emt 0:00:51]} Kf7 {[%emt 0:02:06]} 30. Nf4 {[%emt 0:00:37]} Ne3 {[%emt 0:04:25]} 31. Bd2 {[%emt 0:00:25]} Rxc1+ {[%emt 0:00:03]} 32. Bxc1 {[%emt 0:00:03]} Nc4 {[%emt 0:00:15]} 33. Nd5 {[%emt 0:00:39]} Bd8 {[%emt 0:00:12]} 34. Kf2 {[%emt 0:00:30]} Ke6 {[%emt 0:00:55]} 35. Nf4+ {[%emt 0:00:28]} Kf5 {[%emt 0:00:06]} 36. h3 {[%emt 0:00:49]} g5 {[%emt 0:00:14]} 37. g4+ {[%emt 0:00:38]} Ke5 {[%emt 0:00:09]} 38. Nd3+ {[%emt 0:00:32]} Kd4 {[%emt 0:01:04]} 39. Ne1 {[%emt 0:00:31]} Ne5 {[%emt 0:01:02]} 40. Bb2+ {[%emt 0:00:00]} Ke4 {[%emt 0:00:00]} 41. Ke2 {[%emt 0:07:13]} Bf6 {[%emt 0:07:15]} 42. Nd3 {[%emt 0:06:55]} Nxd3 {[%emt 0:03:42]} 43. Bxf6 {[%emt 0:00:10]} Nf4+ {[%emt 0:00:07]} 44. Kf2 {[%emt 0:04:04]} d5 {[%emt 0:01:15]} 45. Kg3 {[%emt 0:03:43]} Ne6 {[%emt 0:02:31]} 46. h4 {[%emt 0:02:18]} gxh4+ {[%emt 0:00:14]} 47. Kxh4 {[%emt 0:01:45]} d4 {[%emt 0:02:18]} 48. g5 {[%emt 0:02:47]} d3 {[%emt 0:19:50]} 49. Bc3 {[%emt 0:00:05]} Nxg5 {[%emt 0:00:30]} 50. Kxg5 {[%emt 0:00:25]} Ke3 {[%emt 0:00:02]} 51. Kf5 {[%emt 0:01:52]} d2 {[%emt 0:01:21]} 52. Bxd2+ {[%emt 0:00:13]} Kxd2 {[%emt 0:00:02]} 53. Ke5 {[%emt 0:01:17]} Kc3 {[%emt 0:00:13]} 54. b5 {[%emt 0:00:16]} axb5 {[%emt 0:00:13]} 55. Kd5 {[%emt 0:00:21]} Kb2 {[%emt 0:02:08]} 56. Kc6 {[%emt 0:00:12]} b4 {[%emt 0:00:07]} 57. Kb5 {[%emt 0:00:07]} Ka3 {[%emt 0:00:07]} 58. Kc4 {[%emt 0:00:07]} Ka4 {[%emt 0:00:17]} 59. Kd5 {[%emt 0:00:22]} Kb5 {[%emt 0:02:18]} 60. Kd4 {[%emt 0:00:28]} Ka6 {[%emt 0:02:02]} 61. Kd5 {[%emt 0:02:29]} Kb5 {[%emt 0:00:23]} 62. Kd4 {[%emt 0:00:09]} Ka4 {[%emt 0:00:52]} 63. Kd5 {[%emt 0:00:41]} Ka3 {[%emt 0:00:27]} 64. Kc4 {[%emt 0:00:16]} Ka4 {[%emt 0:00:16]} 65. Kd5 {[%emt 0:00:12]} Ka5 {[%emt 0:00:50]} 66. Kc4 {[%emt 0:00:16]} Ka4 {[%emt 0:00:13]} 67. Kd5 {[%emt 0:00:17]} b5 {[%emt 0:00:35]} 68. Kc6 {[%emt 0:00:57]} Ka3 {[%emt 0:00:29]} 69. Kxb5 {[%emt 0:00:06]} Kxa2 {[%emt 0:00:02]} 70. Kxb4 {[%emt 0:00:09]} 1/2-1/2